Cogmind - Beta 16 @@@ ROGUE MODE // 2025.12.01 @ 10:29:10 Player: Darrellet86 Result: Destroyed by Y-45 Defender with Beam Rifle Performance ------------- Evolutions (1) 500 Regions Visited (2) 400 Robots Destroyed (27) 135 Value Destroyed (510) 510 Prototype IDs (1) 20 Alien Tech Used (0) 0 Bonus (0) 0 TOTAL SCORE: 1565 Bonus ------- None Cogmind --------- Core Integrity 0/400 Matter 450/450 Energy 100/100 System Corruption 0% Temperature Cool (18) Movement Core (400) Ox7 Location -9/Materials Parts ------- > --- POWER (1) -------- (None) > --- PROPULSION (2) --- Light Treads > --- UTILITY (4) ------ Heat Sink Large Storage Unit Large Matter Pod > --- WEAPON (2) ------- (None) > --- INVENTORY (15) --- Ion Engine Light Ion Engine Light Treads Light Treads Light Treads Improved Flight Unit Small Storage Unit Medium Storage Unit Medium Storage Unit Medium Storage Unit Large Storage Unit Signal Interpreter Peak State ------------ > --- POWER ------------ Improved Ion Engine > --- PROPULSION ------- Light Treads Aluminum Leg > --- UTILITY ---------- Heat Sink Large Storage Unit Large Matter Pod > --- WEAPON ----------- Small Laser Beam Rifle > --- INVENTORY -------- Light Ion Engine Light Treads Light Treads Improved Flight Unit Small Storage Unit Medium Storage Unit Medium Storage Unit Medium Storage Unit Large Storage Unit Signal Interpreter [Rating: 11] Favorites ----------- Power Light Ion Engine Engine Light Ion Engine Propulsion Aluminum Leg Treads Light Treads Leg Aluminum Leg Flight Unit Improved Flight Unit Utility Large Storage Unit Device Heat Sink Storage Large Storage Unit Protection Core Shielding Weapon Light Assault Rifle Energy Gun Small Laser Ballistic Gun Light Assault Rifle Launcher Grenade Launcher Special Weapon Mining Laser Build | -11 -10 -9 ------- Run | Yrd Mat Mat Slots Evolved 2 | . . 2 Power . | . . . Propulsion . | . . . Utility 2 | . . 2 Weapon . | . . . Parts Attached 32 | 8 12 12 Power 4 | 1 2 1 Engine 4 | 1 2 1 Core . | . . . Reactor . | . . . Propulsion 10 | 2 3 5 Treads 5 | . 2 3 Leg 4 | 2 1 1 Wheel . | . . . Hover . | . . . Flight 1 | . . 1 Utility 9 | 2 3 4 Device 2 | 1 . 1 Storage 6 | 1 3 2 Processor . | . . . Hackware . | . . . Protection 1 | . . 1 Artifact . | . . . Weapon 9 | 3 4 2 Energy Gun 3 | 1 . 2 Energy Cannon . | . . . Ballistic Gun 4 | 2 2 . Ballistic Cannon . | . . . Launcher 1 | . 1 . Special Weapon 1 | . 1 . Impact Weapon . | . . . Slashing Weapon . | . . . Piercing Weapon . | . . . Special Melee Weapon . | . . . Unidentified Prototypes 1 | . . 1 Parts Lost 14 | . 1 13 Power 2 | . . 2 Propulsion 5 | . 1 4 Utility 1 | . . 1 Weapon 6 | . . 6 Highest Loss Streak 7 | . 1 7 To Critical Strikes . | . . . Average Backups 10 | 4 9 12 Power 1 | . 1 1 Propulsion 2 | 1 2 3 Utility 4 | . 3 6 Weapon 1 | 1 2 1 Tool/Special . | . . . Unused Backups 5 | . . 5 Power 1 | . . 1 Propulsion 1 | . . 1 Utility 3 | . . 3 Weapon . | . . . Tool/Special . | . . . Average Slot Usage (%) 84 | . 99 77 Engine 10 | . 14 9 Treads 9 | . 2 12 Leg 11 | . 24 6 Device 2 | . 1 3 Storage 22 | . 26 20 Protection 4 | . . 6 Energy Gun 6 | . . 8 Ballistic Gun 12 | . 19 9 Launcher 2 | . 7 . Peak Build Rating 11 | 9 9 11 Average Rating 7 | 4 7 8 On Entrance 5 | . 9 8 Avg Prop Armor Cover (%) 12 | . . 12 Naked Turns . | . . . Heaviest Build 53 | 14 29 53 Greatest Support 40 | 20 40 40 Greatest Overweight (x) 17 | 4 1 17 Average Overweight (x) 1 | . . 1 Largest Inventory Capacity 15 | 8 15 15 Average Capacity 13 | 7 11 15 Most Carried 15 | 7 14 15 Average Carried 10 | 4 9 12 Final Capacity 15 | 8 15 15 Final Carried 13 | 6 13 12 Class Distribution -------------------- 56% | Mutant 43% | Scavenger-Mutant Dominant Class ---------------- Mutant | -10/Materials Scavenger-Mutant | -9/Materials Resources | -11 -10 -9 ----------- Run | Yrd Mat Mat Matter Collected 879 | 365 164 350 Remotely . | . . . Salvage Created 830 | 182 204 444 Parts 55 | 10 21 24 Haulers Intercepted . | . . . Recyclers Shooed . | . . . Parts Field Recycled . | . . . Retrieved Matter . | . . . Parts Self-Destructed . | . . . Prevented . | . . . Parts Restored . | . . . Kills | -11 -10 -9 ------- Run | Yrd Mat Mat Combat Hostiles Destroyed 16 | . 9 7 Guns 13 | . 6 7 AOE 3 | . 3 . Classes Destroyed 7 | 3 3 1 Worker 4 | 2 1 1 Tunneler 2 | 2 . . Recycler 2 | 1 . 1 Watcher 3 | . 2 1 Swarmer 6 | . 6 . Grunt 8 | . 3 5 Sentry 2 | . . 2 Best Kill Streak 5 | 4 5 3 Combat Bots Only 3 | . 3 3 Max Kills in Single Turn 2 | 2 2 1 Gunslinging . | . . . Exploded 2 | . 2 . Melee . | . . . Uniques/NPCs Destroyed . | . . . Combat | -11 -10 -9 -------- Run | Yrd Mat Mat Hostile Shots Fired 295 | . 83 212 Missed 76 | . 16 60 Hits 219 | . 67 152 Projectile 219 | . 67 152 Critical Strikes 7 | . . 7 Actively Blocked 1 | . . 1 Damage Taken 2594 | 36 593 1965 Core 510 | . 102 408 Absorbed by Shields . | . . . Redirected to Shielding 51 | . . 51 Core Remaining (%) 79 | 100 59 . Volleys Fired 103 | 16 28 59 Largest 2 | 1 2 2 Hottest 140 | 40 120 140 Shots Fired 140 | 16 44 80 Gun 128 | 16 33 79 Cannon . | . . . Launcher 6 | . 6 . Special 6 | . 5 1 Kinetic 84 | . 33 51 Thermal 22 | . 5 17 Explosive 6 | . 6 . Electromagnetic 28 | 16 . 12 Robot Hit Streak 13 | 2 4 13 Robot Miss Streak 3 | 2 3 3 Penetration Max . | . . . Secondary Targets 2 | . 2 . Max Gunslinging Chain 1 | . 1 . Shots Hit Robots 90 | 8 24 58 Core Hits 47 | 6 18 23 Critical Kills . | . . . Critical Parts Destroyed . | . . . Critical Strikes 3 | 1 . 2 Burn 2 | . . 2 Corrupt 1 | 1 . . Melee Attacks . | . . . Impact . | . . . Slashing . | . . . Piercing . | . . . Sneak Attacks . | . . . Combat Hostiles . | . . . Follow-up Attacks . | . . . Damage Inflicted 1288 | 219 489 580 Guns 871 | 121 173 577 Cannons . | . . . Explosions 366 | 98 268 . Melee . | . . . Ramming 3 | . . 3 Kinetic 492 | . 173 319 Thermal 312 | 98 48 166 Explosive 268 | . 268 . Electromagnetic 213 | 121 . 92 Impact . | . . . Slashing . | . . . Piercing . | . . . Highest Corruption . | . . . Average Corruption . | . . . Corruption Purged . | . . . Corruption Blocked . | . . . Overload Shots . | . . . Overflow Damage 12 | 8 4 . Projectiles 4 | . 4 . Explosions 8 | 8 . . Melee . | . . . Knockbacks . | . . . Impact . | . . . Kinetic . | . . . Secondary . | . . . Self-Inflicted Damage 66 | 37 29 . Shots 3 | 1 2 . Rammed 2 | . . 2 Targets Rammed 3 | . . 3 Kicked 1 | . . 1 Crushed . | . . . Highest Temperature 102 | 12 102 40 Average Temperature 22 | 12 42 11 Received Heat Transfer 996 | . 30 966 Siege Activations . | . . . Martial Activations . | . . . Shielding Activations . | . . . Robots Disrupted . | . . . Combat Hostiles . | . . . Robots Corrupted . | . . . Combat Hostiles . | . . . Parts Fried 2 | 1 . 1 Impact Corruptions . | . . . Robots Melted . | . . . Combat Hostiles . | . . . Parts Melted . | . . . Heat Transferred 746 | 100 100 546 Parts Sabotaged . | . . . Parts Stolen . | . . . Parts Stripped . | . . . Power Chain Reactions 2 | 2 . . Alert | -11 -10 -9 ------- Run | Yrd Mat Mat Maximum Alert Level . | . . . Low Security (%) 100 | 100 100 100 Level 1 . | . . . Level 2 . | . . . Level 3 . | . . . Level 4 . | . . . Level 5 . | . . . High Security . | . . . Max Security . | . . . Peak Influence 143 | 15 143 51 Initial 51 | . . 51 Average 28 | 2 87 9 Influence Increases 496 | 25 283 188 Destroy 0b10 Robot/C 320 | . 180 140 Destroy 0b10 Robot/NC 55 | 25 15 15 Destroy Leader 76 | . 44 32 Disable Machine 15 | . 15 . Destroy Structure 30 | . 29 1 Influence Decreases 496 | 25 160 311 Entered New Map 72 | . . 72 Time Decay 347 | 25 150 172 Lost Part 77 | . 10 67 Squads Dispatched 3 | . 2 1 Investigation 1 | . 1 . Extermination . | . . . Reinforcement 2 | . 1 1 Assault . | . . . Garrison . | . . . Intercept . | . . . Searches Triggered . | . . . Construction Impeded . | . . . Haulers Reinforced . | . . . Active Scanning Responses . | . . . Cargo Convoy Interrupts . | . . . Stealth | -11 -10 -9 --------- Run | Yrd Mat Mat Distress Signals 2 | . . 2 Communications Jammed . | . . . Distress Signals . | . . . Times Spotted 28 | . 14 14 Peak Tracking Total 6 | . 5 6 Tactical Retreats . | . . . Traps | -11 -10 -9 ------- Run | Yrd Mat Mat Traps Triggered 1 | . 1 . Indirectly . | . . . Trap Hack Attempts . | . . . Triggered . | . . . Disarmed . | . . . Reprogrammed . | . . . Reused . | . . . Traps Extracted . | . . . Installed . | . . . Triggered . | . . . Machines | -11 -10 -9 ---------- Run | Yrd Mat Mat Machines Disabled 1 | . 1 . Max in Single Turn 1 | . 1 . Machines Repaired . | . . . Machines Dismantled . | . . . Machines Sabotaged . | . . . Overloaded Fab Kills . | . . . Hacking | -11 -10 -9 --------- Run | Yrd Mat Mat Machines Accessed 4 | . 3 1 Terminals 2 | . 2 . Fabricators . | . . . Repair Stations . | . . . Recycling Units 1 | . 1 . Scanalyzers 1 | . . 1 Garrison Access . | . . . Total Hacks 12 | . 8 4 Successful 10 | . 6 4 Failed 2 | . 2 . Catastrophic . | . . . Database Lockouts . | . . . Manual . | . . . Terminals 3 | . 3 . Fabricators . | . . . Repair Stations . | . . . Recycling Units 5 | . 5 . Scanalyzers 4 | . . 4 Garrison Access . | . . . Terminal Hacks 2 | . 2 . Alert Level 1 | . 1 . Hauler Manifests 1 | . 1 . Fabricator Hacks . | . . . Repair Station Hacks . | . . . Recycling Unit Hacks 4 | . 4 . Recycle Component 1 | . 1 . Process 2 | . 2 . Retrieve Matter 1 | . 1 . Scanalyzer 4 | . . 4 Insert Component 2 | . . 2 Analyze 2 | . . 2 Garrison Access Hacks . | . . . Unauthorized Hacks . | . . . Terminals . | . . . Fabricators . | . . . Repair Stations . | . . . Recycling Units . | . . . Scanalyzers . | . . . Garrison Access . | . . . Data Cores Recovered . | . . . Used . | . . . Hacking Detections 1 | . 1 . Full Trace Events . | . . . Feedback Events . | . . . Feedback Blocked . | . . . Robot Schematics Acquired . | . . . Robots Built . | . . . Authchips . | . . . Time . | . . . Total Robot Build Rating . | . . . Part Schematics Acquired 2 | . . 2 Parts Built . | . . . Authchips . | . . . Time . | . . . Total Part Build Rating . | . . . Part Studies Acquired . | . . . Parts Repaired . | . . . Time . | . . . Parts Recycled 1 | . 1 . Recycled Matter 30 | . 30 . Retrieved Matter 30 | . 30 . Retrieved Components . | . . . Parts Scanalyzed 2 | . . 2 Part Schematics Acquired 2 | . . 2 Parts Damaged . | . . . Bothacking | -11 -10 -9 ------------ Run | Yrd Mat Mat Used RIF Installer . | . . . Robots Hacked . | . . . Non-combat . | . . . Combat . | . . . Robot Hacks Applied . | . . . Relay Couplers Released . | . . . Fabnet Peak Effective % . | . . . Robots Rewired . | . . . Allies Hacked . | . . . Hacks Repelled . | . . . Allies | -11 -10 -9 -------- Run | Yrd Mat Mat Total Allies . | . . . Largest Group . | . . . Highest-Rated Group . | . . . Highest-Rated Ally . | . . . Total Orders . | . . . Ally Attacks . | . . . Total Damage . | . . . Kills . | . . . Allies Corrupted . | . . . Allies Melted . | . . . Intel | -11 -10 -9 ------- Run | Yrd Mat Mat Active Infowar (turns) 42 | 10 32 . Terrain 42 | 10 32 . Robot Analysis Total . | . . . Derelict Logs Recovered . | . . . Drone Launches . | . . . Drone Recoveries . | . . . Exploration | -11 -10 -9 ------------- Run | Yrd Mat Mat Turns Passed 1283 | 169 333 781 Spaces Moved 468 | 87 156 225 Core 37 | 30 . 7 Treads 103 | . 2 101 Legs 328 | 57 154 117 Wheels . | . . . Hover . | . . . Flight . | . . . Fastest Speed 50 | 50 120 160 Average Speed 198 | 133 141 262 Slowest Speed 900 | 250 190 900 Overloaded Moves . | . . . Propulsion Burnouts . | . . . Robots Hopped . | . . . Potential Cave-ins . | . . . Cave-ins Triggered . | . . . Exploration Rate (%) 14 | 4 23 15 Regions Visited 2 Branch Regions . Pre-discovered Areas . | . . . Known Exits Taken . | . . . Unknown Exits Taken 2 | 1 1 . Scrap Searched . | . . . Spaces Dug . | . . . Terrain Destroyed 34 | 6 27 1 Melee . | . . . Projectile 1 | . . 1 AOE 33 | 6 27 . Terrain Rammed . | . . . Walls Destroyed . | . . . Machines Disabled . | . . . Actions | -11 -10 -9 --------- Run | Yrd Mat Mat Total 663 | 123 215 325 Wait . | . . . Move 466 | 86 155 225 Hop . | . . . Pick Up 37 | 13 12 12 Fast Attach . | . . . Attach 23 | 7 2 14 Detach 4 | . 1 3 Swap 21 | 1 14 6 Drop 6 | . 3 3 Fire 103 | 16 28 59 Melee . | . . . Ram 2 | . . 2 Kick 1 | . . 1 Crush . | . . . Escape Stasis . | . . . Rewire . | . . . Trap . | . . . Miscellaneous . | . . . Route ------- -11/Scrapyard -10/Materials -9/Materials (discovered 1 exit: [*Min]) History --------- Turn | Location | Event 8 | -11/Scrapyard | Discovered new exit (range 15) 170 | -11/Scrapyard | Entered Materials 305 | -10/Materials | Build established: Mutant 390 | -10/Materials | Discovered new exit (range 11) 503 | -10/Materials | Entered another Materials area 503 | -9/Materials | Evolved 2 slots: Utility x2 504 | -9/Materials | Discovered new exit (range 7) 949 | -9/Materials | Lost 7 parts (1p2n4w) 952 | -9/Materials | Core integrity fell below 50% 1256 | -9/Materials | Core integrity fell below 20% 1284 | -9/Materials | Destroyed by Y-45 Defender with Beam Rifle Last Messages --------------- 01021_ Acquired 42 matter. 01027_ Acquired 61 matter. 01034_ Acquired Heat Sink. 01036_ Acquired 10 matter. 01046_ Acquired Ion Engine. 01057_ Acquired Lgt. Treads. 01101_ K-01 Serf cleans the Hadron Collector. 01127_ Kicked U-05 Engineer. 01157_ K-01 Serf collects debris. 01223_ W-16 Scout suffers critical hit (Burn). 01223_ W-16 Scout sends out distress signal. 01226_ W-16 Scout suffers critical hit (Burn). 01226_ W-16 Scout destroyed. 01235_ Sml. Laser destroyed. 01243_ Critical hit (Burn: +37). 01266_ Aluminum Leg destroyed. 01273_ Beam Rifle destroyed. 01282_ Critical hit (Burn: +37). 01284_ Imp. Ion Engine destroyed. Map ----- +----------------------------------------------------+ | ??????????????????????# # "" | | ??????????????????????# # | | ??????????????????????# # "" | | ??????????????????????# # "" | | ??????????????????????# # "" | | ??????????????????????# # % | | ???????????????######## ##+# | | ???????????????# !==# # | | ???????????????# == # # | | ???????????????# + # | | ???????????????# " %=# # | | ???????????????# S"" # # | | ???????????????# ""= !# # | | ???????????????##### ## # | | ???????????????????#### # | | #######???????????????# # | | # ???????????????# # | | # ???????????????# # | | # """#????????????# # | | # """#????????????# # | | # """#????????????# # | | # """#????????????# # | | # ! #????????????# # | | ? #????????????# # | | ??? ??????????????# # | | ??###@###?????????????# # | | ??#! ############### # | | ??# g # | | ??# T g= + | | ??# Y*%! # | | ??# ###################### | | ??## ##????????????????????? | | ???# #?????????????????????? | | ???# #?????????????????????? | | ???# #?????????????????????? | | ???# #?????????????????????? | | ???# #?????????????????????? | | ???# t#?????????????????????? | | ???# ??????????????????????? | | ???# ??????????????????????? | | ???# ??????????????????????? | | ???# ??????????????????????? | | ????? ???????????????????????? | | ?????????????????????????????? | | ?????????????????????????????? | | ?????????????????????????????? | | ?????????????????????????????? | | ?????????????????????????????? | | ?????????????????????????????? | | ?????????????????????????????? | +----------------------------------------------------+ Best States ------------- Heat Dissipation 38 Energy Generation 12 Energy Capacity 265 Matter Stores 450 Matter Capacity 450 Sight Range 16 Terrain Scan Range 16 Terrain Scan Density 10 Core Shielding 20 Evasion (%) 55 Recoil Reduction 2 Item Schematics ----------------- Grenade Launcher | -9/Materials | Scanalyzed EM Pulse Gun | -9/Materials | Scanalyzed Robot Schematics ------------------ None Fabricated ------------ Nothing Repaired ---------- Nothing Studied --------- None Alien Tech Used ----------------- None Achievements -------------- Shopping List That Tickles Challenges ------------ None Game ------ Seed DefenseDirtyTrident Manual? 0 Play Time 00:25:06 Cumulative 2.4 hours Start 2025.12.01 @ 09:48:45 End 2025.12.01 @ 10:29:10 Sessions 1 Manual Loads 0 Difficulty Rogue Special Mode None Game No. 4 Rogue 4 Adventurer 0 Explorer 0 Win Type - Total 0 Types 0/0/0/0/0/0/0/0/0/0 Lore% 0 Gallery% 5 Achievement% 5 Wizard Run 0 Options --------- Layout 1 ASCII 0 Keyboard 0 Movement Arrows Keybinds 0 Fullscreen 1 Font 24/Proggy Map View 50x35 Zoom Use 0% Tactical HUD 1 Map Filters NONE Filters NONE Steam 1 RUN: 66fcd45d-5098-4c1c-936e-ea6e792d7c61